Cogmind - Beta 17 @@@ ROGUE MODE // 2026.07.25 @ 00:42:53 Player: Lazz Result: Destroyed self with Sigix Terminator Performance ------------- Evolutions (7) 3500 Regions Visited (14) 2800 Robots Destroyed (143) 715 Value Destroyed (5268) 5268 Prototype IDs (6) 120 Alien Tech Used (1) 200 Bonus (1090) 1090 TOTAL SCORE: 13693 Bonus ------- High Alert Combat Kills 185 Follower Combat Kills 1053 Friendly Fire -148 Cogmind --------- Core Integrity 0/1300 Matter 118/300 Energy 68/100 System Corruption 7% Temperature Cool (0) Movement Core (50) Location -3/Quarantine Parts ------- > --- POWER (2) -------- (None) > --- PROPULSION (6) --- (None) > --- UTILITY (7) ------ Hacking Suite Improved System Shield > --- WEAPON (6) ------- (None) > --- INVENTORY (5) ---- Advanced Heat Sink Peak State ------------ > --- POWER ------------ Antimatter Reactor Particle Reactor > --- PROPULSION ------- Medium Treads Medium Treads Flexi-carbon Leg Myomer Leg Myomer Leg Myomer Leg > --- UTILITY ---------- Advanced Heat Sink Advanced Heat Sink Advanced Signal Interpreter Advanced ECM Suite Improved Phase Shifter Focal Shield Hacking Suite > --- WEAPON ----------- Plasma Rifle Plasma Rifle Heavy Machine Gun Heavy Machine Gun Heavy Machine Gun Heavy Gauss Cannon > --- INVENTORY -------- Flexi-carbon Leg Xenon Bombardment Thruster Quantum Rifle Coil Gun Railgun [Rating: 117] Favorites ----------- Power Heavy Ion Engine Engine Heavy Ion Engine Power Core Micro Fission Core Reactor Antimatter Reactor Propulsion Light Treads Treads Light Treads Leg Flexi-carbon Leg Wheel Wheel Hover Unit Antigrav System Flight Unit Xenon Bombardment Thruster Utility Advanced Signal Interpreter Device Improved Sensor Array Storage High-capacity Storage Unit Processor Advanced Signal Interpreter Hackware Hacking Suite Protection Damper Plating Weapon Minigun Energy Gun Plasma Rifle Energy Cannon Ion Cannon Ballistic Gun Minigun Ballistic Cannon Gauss Cannon Launcher Mini Grenade Launcher Slashing Weapon Scythe Build | -11 -10 -10 -9 -8 -8 -8 -6 -6 -5 -4 -4 -4 -3 -3 ------- Run | Yrd Mat Min Mat Mat Sto Rec Fac Ext Fac Fac Was Fac Res Qua Slots Evolved 14 | . . . 2 2 . . 4 . 2 2 . . 2 . Power 1 | . . . . . . . . . 1 . . . . . Propulsion 4 | . . . 1 1 . . 1 . 1 . . . . . Utility 5 | . . . . . . . 3 . . 2 . . . . Weapon 4 | . . . 1 1 . . . . . . . . 2 . Parts Attached 165 | 7 5 . 7 14 12 . 20 37 20 1 6 2 32 2 Power 13 | 1 . . 1 1 1 . . 4 2 . 1 . 2 . Engine 7 | 1 . . 1 1 1 . . 3 . . . . . . Core 3 | . . . . . . . . 1 2 . . . . . Reactor 3 | . . . . . . . . . . . 1 . 2 . Propulsion 61 | 2 . . 3 5 8 . 8 14 7 . 2 1 11 . Treads 37 | . . . 3 4 8 . 7 9 2 . 2 . 2 . Leg 11 | . . . . . . . 1 1 5 . . . 4 . Wheel 8 | 2 . . . 1 . . . 4 . . . 1 . . Hover 2 | . . . . . . . . . . . . . 2 . Flight 3 | . . . . . . . . . . . . . 3 . Utility 41 | 2 1 . 1 1 2 . 9 8 5 1 1 . 10 . Device 19 | 1 . . . 1 . . 4 3 4 1 . . 5 . Storage 4 | 1 1 . 1 . . . . . . . . . 1 . Processor 9 | . . . . . 2 . 2 3 1 . . . 1 . Hackware 6 | . . . . . . . 1 2 . . . . 3 . Protection 3 | . . . . . . . 2 . . . 1 . . . Artifact . | . . . . . . . . . . . . . . . Weapon 50 | 2 4 . 2 7 1 . 3 11 6 . 2 1 9 2 Energy Gun 8 | . . . . 1 . . . 2 3 . . . 1 1 Energy Cannon 2 | . . . . 1 . . . 1 . . . . . . Ballistic Gun 33 | 2 4 . . 4 1 . 2 7 3 . 2 1 7 . Ballistic Cannon 3 | . . . . 1 . . . 1 . . . . 1 . Launcher 3 | . . . 2 . . . . . . . . . . 1 Special Weapon . | . . . . . . . . . . . . . . . Impact Weapon . | . . . . . . . . . . . . . . . Slashing Weapon 1 | . . . . . . . 1 . . . . . . . Piercing Weapon . | . . . . . . . . . . . . . . . Special Melee Weapon . | . . . . . . . . . . . . . . . Unidentified Prototypes 7 | . . . . 2 1 . . . 3 . . . . 1 Parts Lost 80 | . . . . 1 . . 12 27 4 . 2 3 26 5 Power 6 | . . . . . . . . 3 . . 1 . 2 . Propulsion 29 | . . . . . . . 6 12 1 . . . 7 3 Utility 15 | . . . . . . . 2 3 1 . . 2 6 1 Weapon 30 | . . . . 1 . . 4 9 2 . 1 1 11 1 Highest Loss Streak 19 | . . . . 1 . . 4 13 2 . 2 3 19 5 To Critical Strikes . | . . . . . . . . . . . . . . . Average Backups 12 | . 3 6 8 12 18 20 18 17 4 5 5 5 4 2 Power . | . . . . . . 1 1 . . . . . . . Propulsion 1 | . . . . . 3 3 2 1 . . . . 1 . Utility 7 | . . 2 3 5 10 11 10 12 3 3 2 2 . 1 Weapon 3 | . 3 4 4 5 5 5 5 2 1 2 2 3 2 . Tool/Special . | . . . . . . . . . . . . . . . Unused Backups 15 | . . . . 2 2 . 2 6 . . 1 . 2 . Power . | . . . . . . . . . . . . . . . Propulsion 1 | . . . . . . . . . . . . . 1 . Utility 10 | . . . . . 1 . 2 6 . . 1 . . . Weapon 4 | . . . . 2 1 . . . . . . . 1 . Tool/Special . | . . . . . . . . . . . . . . . Average Slot Usage (%) 91 | . 100 100 93 95 100 100 98 89 86 93 79 71 74 27 Engine 6 | . 14 14 11 9 9 9 6 5 4 . . . . . Treads 21 | . . . 15 27 34 36 31 25 9 10 11 15 6 . Leg 3 | . . . . . . . 1 . 15 21 11 5 11 . Wheel 3 | . 28 28 14 5 1 . . 2 . . . . . . Device 6 | . 14 14 11 9 . . 6 2 9 20 15 9 11 4 Storage 5 | . 14 14 11 9 9 9 6 5 . . . . . . Processor 11 | . . . . . 8 9 14 20 16 10 7 5 4 . Hackware 2 | . . . . . . . 4 3 1 . . . 5 9 Energy Gun 1 | . . . . 3 . . . . 10 5 2 . 1 3 Ballistic Gun 19 | . 28 28 22 18 36 36 25 10 6 10 11 14 15 . Ballistic Cannon 1 | . . . . 9 . . . 3 . . . . 2 . Slashing Weapon 1 | . . . . . . . . 4 3 5 5 4 . . Peak Build Rating 117 | 7 9 10 14 24 28 28 61 58 87 89 102 104 117 62 Average Rating 48 | 5 8 9 12 19 26 28 45 47 74 88 93 100 90 31 On Entrance 40 | . 7 9 10 14 24 28 28 58 55 84 89 102 73 22 Avg Prop Armor Cover (%) 9 | . . . 6 18 12 . 3 15 13 12 5 1 8 . Naked Turns . | . . . . . . . . . . . . . . . Heaviest Build 92 | 13 30 30 55 64 61 60 66 69 38 37 82 82 92 28 Greatest Support 167 | 26 26 26 60 60 80 80 118 138 78 78 167 167 167 20 Greatest Overweight (x) 15 | . 1 1 1 6 6 . 1 15 1 . . . 3 1 Average Overweight (x) . | . . 1 . 4 . . . . . . . . . . Largest Inventory Capacity 20 | 8 15 15 20 20 20 20 20 20 5 5 5 5 15 5 Average Capacity 15 | 7 9 15 16 20 20 20 20 19 5 5 5 5 6 5 Most Carried 20 | 1 6 7 10 18 20 20 20 20 5 5 5 5 6 3 Average Carried 12 | . 4 6 8 12 18 19 18 17 4 5 5 5 4 1 Final Capacity 20 | 8 15 15 20 20 20 20 20 5 5 5 5 5 5 5 Final Carried 20 | 1 6 7 9 14 20 20 20 4 5 5 5 5 3 1 Class Distribution -------------------- 28% | Scavenger-Gunner 20% | Scavenger-Skirmisher 12% | Mutant 7% | Skirmisher 6% | Scavenger-Mutant 6% | Scavenger-Tank 5% | Gunner 4% | Scavenger-Executioner 4% | Commander-Gunner Dominant Class ---------------- Mutant | -10/Materials Mutant | -10/Mines Gunner | -9/Materials Scavenger-Skirmisher | -8/Materials Scavenger-Gunner | -8/Storage Commander-Gunner | -8/Recycling Scavenger-Skirmisher | -6/Factory Scavenger-Gunner | -6/Extension Skirmisher | -5/Factory Scavenger-Skirmisher | -4/Factory Scavenger-Tank | -4/Waste Scavenger-Tank | -4/Factory Scavenger-Executioner | -3/Research Hacker-Mutant | -3/Quarantine Resources | -11 -10 -10 -9 -8 -8 -8 -6 -6 -5 -4 -4 -4 -3 -3 ----------- Run | Yrd Mat Min Mat Mat Sto Rec Fac Ext Fac Fac Was Fac Res Qua Matter Collected 6415 | 231 39 315 19 455 1052 48 1159 1551 492 . 144 96 814 . Remotely 448 | . . . . . . . . 448 . . . . . . Salvage Created 5705 | 29 39 140 198 296 1173 142 1206 849 607 . . 140 886 . Parts 336 | 4 3 12 16 21 79 5 65 46 29 . . 8 48 . Haulers Intercepted 9 | . . . 2 3 3 . 1 . . . . . . . Recyclers Shooed 4 | . . . 1 . . . 2 . 1 . . . . . Parts Field Recycled . | . . . . . . . . . . . . . . . Retrieved Matter . | . . . . . . . . . . . . . . . Parts Self-Destructed . | . . . . . . . . . . . . . . . Prevented . | . . . . . . . . . . . . . . . Parts Restored . | . . . . . . . . . . . . . . . Kills | -11 -10 -10 -9 -8 -8 -8 -6 -6 -5 -4 -4 -4 -3 -3 ------- Run | Yrd Mat Min Mat Mat Sto Rec Fac Ext Fac Fac Was Fac Res Qua Combat Hostiles Destroyed 98 | . . 2 6 3 20 . 17 17 10 . . 2 17 4 Melee 1 | . . . . . . . . . . . . 1 . . Guns 72 | . . 2 1 1 20 . 17 9 8 . . 1 13 . Cannons 13 | . . . . 2 . . . 8 . . . . 3 . AOE 9 | . . . 5 . . . . . . . . . . 4 Classes Destroyed 15 | 1 2 2 3 2 1 . 2 . 2 . . . . . Worker 8 | . . 2 . . 1 . 2 . . . . 1 2 . Builder 8 | . . . . 2 . . 2 3 . . . . 1 . Tunneler 3 | 1 . 1 . . . . . 1 . . . . . . Hauler 9 | . . . 2 3 3 . 1 . . . . . . . Recycler 6 | . . . . . 2 2 1 1 . . . . . . Operator 4 | . 1 . 1 . 2 . . . . . . . . . Watcher 6 | . 2 . . . 1 . . 1 1 . . . 1 . Swarmer 27 | . . . 3 . 7 . 3 6 . . . . 8 . Grunt 28 | . . 2 2 1 3 . 6 4 3 . . . 3 4 Duelist 1 | . . . . . . . . . 1 . . . . . Sentry 20 | . . . 1 1 9 . 2 5 . . . 1 1 . Specialist 2 | . . . . . . . . . 2 . . . . . Hunter 8 | . . . . 1 1 . . 1 2 . . 1 2 . Programmer 10 | . . . . . . . 5 . 2 . . . 3 . Behemoth 2 | . . . . . . . 1 1 . . . . . . Wasp 1 | . . . . . . . . . . . . 1 . . Best Kill Streak 14 | 1 3 2 7 2 14 2 4 4 4 . . 1 4 4 Combat Bots Only 10 | . . 2 5 1 10 . 4 3 4 . . 1 4 4 Max Kills in Single Turn 4 | 1 1 1 3 1 2 2 2 1 1 . . 1 2 4 Gunslinging 1 | . . . . . 1 . 1 . . . . . . . Exploded 4 | . . . 2 . . . . . . . . . . 4 Melee 1 | . . . . . . . . . . . . 1 . . Uniques/NPCs Destroyed . | . . . . . . . . . . . . . . . Combat | -11 -10 -10 -9 -8 -8 -8 -6 -6 -5 -4 -4 -4 -3 -3 -------- Run | Yrd Mat Min Mat Mat Sto Rec Fac Ext Fac Fac Was Fac Res Qua Hostile Shots Fired 1095 | . . 8 40 11 59 11 154 269 87 . 2 106 338 10 Missed 338 | . . 1 8 5 15 . 38 93 25 . . 20 127 6 Hits 757 | . . 7 32 6 44 11 116 176 62 . 2 86 211 4 Melee 4 | . . . . . . . . . 2 . 2 . . . Projectile 753 | . . 7 32 6 44 11 116 176 60 . . 86 211 4 AOE 1 | . . . . . . . 1 . . . . . . . Critical Strikes 21 | . . . . . 1 . 3 3 2 . 2 8 2 . Part Disruptions 2 | . . . . . . . 2 . . . . . . . Damage Taken 14509 | . . 104 379 108 580 172 1997 3306 1116 . 103 1769 4026 849 Core 2158 | . . 30 49 . 58 . 99 474 63 . 43 32 671 639 Absorbed by Shields . | . . . . . . . . . . . . . . . Reduced by Siege Mode 18 | . . . . . . . . . . . . . 18 . Ignored by Resistances 669 | . . . . . . . 24 . 13 . 21 179 432 . Regen/Repaired (Parts) 234 | . . . . . . . 234 . . . . . . . Core Remaining (%) 83 | 100 . 88 87 . . 89 . 32 93 . . 93 . . Volleys Fired 328 | 1 4 11 16 13 40 1 57 89 31 . 1 6 48 10 Largest 6 | 2 2 2 3 4 4 4 4 4 3 . 3 3 6 1 Hottest 291 | 40 46 46 76 175 100 100 100 123 230 . 89 89 291 94 Shots Fired 1034 | 2 8 22 24 46 160 4 212 236 84 . 4 19 202 11 Gun 916 | 2 8 22 12 30 160 4 212 170 84 . 4 19 179 10 Cannon 105 | . . . . 16 . . . 66 . . . . 23 . Launcher 13 | . . . 12 . . . . . . . . . . 1 Special . | . . . . . . . . . . . . . . . Kinetic 908 | 2 8 22 12 35 160 4 212 222 34 . 4 19 174 . Thermal 105 | . . . . 6 . . . 14 46 . . . 28 11 Explosive 12 | . . . 12 . . . . . . . . . . . Electromagnetic 9 | . . . . 5 . . . . 4 . . . . . Robot Hit Streak 46 | 1 6 7 10 13 25 28 46 32 14 . 6 8 10 4 Robot Miss Streak 7 | 1 1 2 1 3 7 . 3 7 2 . 1 5 4 . Penetration Max 1 | . . . . . . . . 1 1 . . 1 1 . Secondary Targets 14 | . . 1 . . 4 . 7 . . . . 1 1 . Max Gunslinging Chain 2 | . . 1 . . 2 . 1 . . . . 1 1 . Shots Hit Robots 706 | 1 6 16 13 24 92 3 182 173 66 . 3 11 115 1 Core Hits 283 | 1 3 7 16 11 42 2 62 57 25 . 1 7 47 2 Critical Kills 2 | . . . . . 2 . . . . . . . . . Critical Parts Destroyed 9 | . . . . . 1 . 7 1 . . . . . . Critical Strikes 32 | . . . . 1 3 . 9 11 3 . . . 5 . Burn 6 | . . . . 1 . . . . 3 . . . 2 . Destroy 16 | . . . . . 3 . 8 5 . . . . . . Blast 9 | . . . . . . . . 6 . . . . 3 . Sever 1 | . . . . . . . 1 . . . . . . . Melee Attacks 11 | . . . . . . . 6 . 1 . 1 3 . . Impact . | . . . . . . . . . . . . . . . Slashing 11 | . . . . . . . 6 . 1 . 1 3 . . Piercing . | . . . . . . . . . . . . . . . Sneak Attacks 4 | . . . . . . . 3 . . . . 1 . . Combat Hostiles . | . . . . . . . . . . . . . . . Follow-up Attacks . | . . . . . . . . . . . . . . . Damage Inflicted 19552 | 12 86 225 616 478 1665 71 3458 3470 1606 . 49 366 2808 4642 Guns 12189 | 12 86 225 121 247 1665 71 3242 2175 1606 . 49 268 2422 . Cannons 1863 | . . . . 184 . . . 1295 . . . . 384 . Explosions 5184 | . . . 495 47 . . . . . . . . . 4642 Melee 278 | . . . . . . . 216 . . . . 62 . . Ramming 38 | . . . . . . . . . . . . 36 2 . Kinetic 12450 | 12 86 225 121 306 1665 71 3242 3307 675 . 49 268 2423 . Thermal 6185 | . . . . 91 . . . 163 906 . . . 383 4642 Explosive 495 | . . . 495 . . . . . . . . . . . Electromagnetic 106 | . . . . 81 . . . . 25 . . . . . Impact . | . . . . . . . . . . . . . . . Slashing 278 | . . . . . . . 216 . . . . 62 . . Piercing . | . . . . . . . . . . . . . . . Highest Corruption 10 | . . . . . 3 3 8 8 7 . 10 10 7 7 Average Corruption 4 | . . . . . 2 3 3 2 6 . 9 10 6 7 Corruption Purged 7 | . . . . . . . . 7 . . . . . . Corruption Blocked . | . . . . . . . . . . . . . . . Effects 105 | . . . . . 6 7 18 23 16 . 5 14 12 4 Message Errors 27 | . . . . . 1 2 3 7 5 . 2 5 1 1 Matter Fused 18 | . . . . . . 2 4 3 5 . . 1 3 . Heat Flow Errors 10 | . . . . . 1 1 2 1 1 . . 2 2 . Energy Discharges 15 | . . . . . . 1 3 4 3 . 1 3 . . Parts Rejected 3 | . . . . . . . . 1 . . 1 . 1 . Parts Fused 3 | . . . . . . . . 1 1 . . . . 1 Data Loss (minor) 8 | . . . . . 3 1 2 1 . . . . 1 . Data Loss (major) 5 | . . . . . 1 . . 3 . . . . 1 . Misfires 6 | . . . . . . . 1 1 . . 1 2 . 1 Alerts 4 | . . . . . . . . 1 1 . . . 1 1 Weapon Failures 6 | . . . . . . . 3 . . . . 1 2 . Overload Shots . | . . . . . . . . . . . . . . . Overflow Damage 764 | . . . 11 . . . . 32 . . . . 26 695 Projectiles 58 | . . . . . . . . 32 . . . . 26 . Explosions 706 | . . . 11 . . . . . . . . . . 695 Melee . | . . . . . . . . . . . . . . . Knockbacks 4 | . . . . 1 . . . 2 . . . . 1 . Impact . | . . . . . . . . . . . . . . . Kinetic 4 | . . . . 1 . . . 2 . . . . 1 . Secondary . | . . . . . . . . . . . . . . . Self-Inflicted Damage 1017 | . . . 28 19 . . . . . . . . . 970 Shots 4 | . . . 2 1 . . . . . . . . . 1 Rammed 5 | . . . . . . . . . . . . 5 . . Targets Rammed 8 | . . . . . . . . . . . . 6 2 . Kicked 2 | . . . . . . . . . . . . . 2 . Crushed 1 | . . . . . . . . . . . . 1 . . Highest Temperature 459 | . 6 34 73 272 218 238 459 336 303 . 72 289 427 14 Average Temperature 93 | . 4 10 40 80 70 139 83 67 85 . 40 118 151 14 Received Heat Transfer 2662 | . . 60 108 9 108 27 1076 453 126 . . 302 372 21 Effects 19 | . . . . 3 . 2 3 2 . . . 3 6 . Shutdowns 4 | . . . . . . . 1 . . . . . 3 . Energy Bleed 2 | . . . . . . . 1 . . . . . 1 . Interference 13 | . . . . 3 . 2 1 2 . . . 3 2 . Siege Activations 5 | . . . . . . . . . . . . . 5 . Total Turns 35 | . . . . . . . . . . . . . 35 . Longest Duration 12 | . . . . . . . . . . . . . 12 . Martial Activations . | . . . . . . . . . . . . . . . Shielding Activations . | . . . . . . . . . . . . . . . Robots Disrupted . | . . . . . . . . . . . . . . . Combat Hostiles . | . . . . . . . . . . . . . . . Robots Corrupted 1 | . . . . . . . . . . . . . 1 . Combat Hostiles 1 | . . . . . . . . . . . . . 1 . Parts Fried 3 | . . . . 1 . . . . 1 . . . 1 . Impact Corruptions 1 | . . . . . . . . . . . . . 1 . Robots Melted 2 | . . . . . . . . . 2 . . . . . Combat Hostiles 2 | . . . . . . . . . 2 . . . . . Parts Melted 11 | . . . . 1 . . 1 . 4 . . . 5 . Heat Transferred 3889 | . . . . 185 . . . 259 2275 . . . 1050 120 Parts Sabotaged . | . . . . . . . . . . . . . . . Parts Stolen . | . . . . . . . . . . . . . . . Parts Stripped . | . . . . . . . . . . . . . . . Power Chain Reactions 1 | . . . . 1 . . . . . . . . . . Alert | -11 -10 -10 -9 -8 -8 -8 -6 -6 -5 -4 -4 -4 -3 -3 ------- Run | Yrd Mat Min Mat Mat Sto Rec Fac Ext Fac Fac Was Fac Res Qua Maximum Alert Level 3 | . . . . . 1 . . . . . . 3 2 1 Low Security (%) 85 | 100 100 100 100 100 31 100 100 100 100 100 100 65 . 48 Level 1 10 | . . . . . 68 . . . . . . 3 53 51 Level 2 4 | . . . . . . . . . . . . 30 46 . Level 3 . | . . . . . . . . . . . . . . . Level 4 . | . . . . . . . . . . . . . . . Level 5 . | . . . . . . . . . . . . . . . High Security . | . . . . . . . . . . . . . . . Max Security . | . . . . . . . . . . . . . . . Peak Influence 716 | 5 7 42 140 52 307 48 172 127 119 34 52 716 480 226 Initial 342 | . . . 9 35 5 48 102 76 7 34 . 1 342 177 Average 83 | 1 2 2 65 19 208 11 51 26 49 12 24 226 383 200 Influence Increases 4703 | 5 25 65 216 147 629 106 609 697 399 . 92 894 561 258 Destroy 0b10 Robot/C 2360 | . . 40 120 60 400 60 340 440 200 . . 280 340 80 Destroy 0b10 Robot/NC 225 | 5 15 15 15 25 45 10 30 35 5 . . 5 20 . Destroy Leader 562 | . 4 10 24 26 128 . 112 54 42 . . 60 92 10 Allied During Kill 374 | . . . . . 21 21 . 57 . . . 275 . . Successful Hack 85 | . 6 . . . 5 . 10 6 34 . . . . 24 Disable Machine 255 | . . . 15 30 30 . . 15 15 . . 120 . 30 Destroy Structure 367 | . . . 42 6 . . 2 15 28 . 92 94 34 54 Advance Influence 100 | . . . . . . . 100 . . . . . . . Partial Spotted 30 | . . . . . . . . . 15 . . . . 15 Lose Combat Pursuer 345 | . . . . . . 15 15 75 60 . . 60 75 45 Influence Decreases 4378 | 5 25 39 158 218 517 223 461 838 343 71 90 242 898 250 Entered New Map 735 | . . . 17 49 8 77 6 80 8 37 . 1 312 140 Time Decay 2407 | 5 25 39 141 159 359 98 325 374 295 30 90 81 326 60 Lost Part 626 | . . . . 10 . . 120 116 40 . . 30 260 50 Lost Ally 393 | . . . . . . 48 10 201 . 4 . 130 . . Purge Threat 217 | . . . . . 150 . . 67 . . . . . . Squads Dispatched 43 | . . . 1 1 6 . 10 2 6 1 . 6 8 2 Investigation 5 | . . . . . 1 . 1 2 . . . . . 1 Extermination 8 | . . . . . . . 5 . 2 . . . 1 . Reinforcement 16 | . . . 1 1 1 . 3 . 3 1 . 4 1 1 Assault 1 | . . . . . . . . . . . . 1 . . Garrison 13 | . . . . . 4 . 1 . 1 . . 1 6 . Intercept . | . . . . . . . . . . . . . . . Searches Triggered . | . . . . . . . . . . . . . . . Construction Impeded 2 | . . . . 1 . . . . . . . 1 . . Haulers Reinforced 1 | . . . . . . . 1 . . . . . . . Active Scanning Responses . | . . . . . . . . . . . . . . . Cargo Convoy Interrupts 1 | . . . . . . . 1 . . . . . . . Stealth | -11 -10 -10 -9 -8 -8 -8 -6 -6 -5 -4 -4 -4 -3 -3 --------- Run | Yrd Mat Min Mat Mat Sto Rec Fac Ext Fac Fac Was Fac Res Qua Distress Signals 16 | . . 1 2 . 3 . 1 2 4 . . 1 2 . Communications Jammed . | . . . . . . . . . . . . . . . Distress Signals . | . . . . . . . . . . . . . . . Times Spotted 187 | . 3 2 10 3 25 5 22 30 21 . 4 15 43 4 Peak Tracking Total 8 | . 2 2 4 1 5 5 4 4 6 . 2 6 8 4 Tactical Retreats 17 | . . . . . . 1 1 4 4 . . 1 5 1 ECM-based Alert Blocks 4 | . . . . . . . . . . . . . 4 . Traps | -11 -10 -10 -9 -8 -8 -8 -6 -6 -5 -4 -4 -4 -3 -3 ------- Run | Yrd Mat Min Mat Mat Sto Rec Fac Ext Fac Fac Was Fac Res Qua Traps Triggered 7 | . . . . . 2 . 2 . 1 1 . 1 . . Indirectly . | . . . . . . . . . . . . . . . Trap Hack Attempts . | . . . . . . . . . . . . . . . Triggered . | . . . . . . . . . . . . . . . Disarmed . | . . . . . . . . . . . . . . . Reprogrammed . | . . . . . . . . . . . . . . . Reused . | . . . . . . . . . . . . . . . Traps Extracted . | . . . . . . . . . . . . . . . Installed . | . . . . . . . . . . . . . . . Triggered . | . . . . . . . . . . . . . . . Machines | -11 -10 -10 -9 -8 -8 -8 -6 -6 -5 -4 -4 -4 -3 -3 ---------- Run | Yrd Mat Min Mat Mat Sto Rec Fac Ext Fac Fac Was Fac Res Qua Machines Disabled 18 | . . . 1 2 2 . . 1 1 . . 8 . 3 Max in Single Turn 2 | . . . 1 1 1 . . 1 1 . . 1 . 2 Machines Repaired . | . . . . . . . . . . . . . . . Machines Dismantled . | . . . . . . . . . . . . . . . Machines Sabotaged . | . . . . . . . . . . . . . . . Overloaded Fab Kills . | . . . . . . . . . . . . . . . Hacking | -11 -10 -10 -9 -8 -8 -8 -6 -6 -5 -4 -4 -4 -3 -3 --------- Run | Yrd Mat Min Mat Mat Sto Rec Fac Ext Fac Fac Was Fac Res Qua Machines Accessed 35 | . 1 . 2 . 8 2 6 5 5 . . . 2 4 Terminals 26 | . 1 . 2 . 8 2 2 5 1 . . . 1 4 Fabricators 4 | . . . . . . . 2 . 2 . . . . . Repair Stations 2 | . . . . . . . 1 . . . . . 1 . Recycling Units . | . . . . . . . . . . . . . . . Scanalyzers 3 | . . . . . . . 1 . 2 . . . . . Garrison Access . | . . . . . . . . . . . . . . . Total Hacks 86 | . 2 . 4 . 20 5 11 14 16 . . . 7 7 Successful 34 | . 1 . . . 5 . 5 6 12 . . . 2 3 Failed 51 | . 1 . 4 . 15 5 6 8 3 . . . 5 4 Catastrophic 15 | . . . 3 . 2 . 4 3 1 . . . 2 . Database Lockouts 1 | . . . . . . . . . 1 . . . . . Manual 26 | . 2 . 2 . 6 5 3 3 3 . . . . 2 Terminals 59 | . 2 . 4 . 20 5 4 14 1 . . . 2 7 Fabricators 6 | . . . . . . . 2 . 4 . . . . . Repair Stations 9 | . . . . . . . 4 . . . . . 5 . Recycling Units . | . . . . . . . . . . . . . . . Scanalyzers 12 | . . . . . . . 1 . 11 . . . . . Garrison Access . | . . . . . . . . . . . . . . . Terminal Hacks 14 | . 1 . . . 5 . . 6 . . . . . 2 Record 1 | . . . . . . . . . . . . . . 1 Robot Analysis 2 | . 1 . . . . . . 1 . . . . . . Open Door 5 | . . . . . 1 . . 3 . . . . . 1 Alert Level 1 | . . . . . 1 . . . . . . . . . Unreport Threat 3 | . . . . . 1 . . 2 . . . . . . Zone Layout 2 | . . . . . 2 . . . . . . . . . Fabricator Hacks 1 | . . . . . . . . . 1 . . . . . Load Schematic 1 | . . . . . . . . . 1 . . . . . Repair Station Hacks 6 | . . . . . . . 4 . . . . . 2 . Scan Component 4 | . . . . . . . 2 . . . . . 2 . Repair 2 | . . . . . . . 2 . . . . . . . Recycling Unit Hacks . | . . . . . . . . . . . . . . . Scanalyzer 11 | . . . . . . . 1 . 10 . . . . . Insert Component 3 | . . . . . . . . . 3 . . . . . Analyze 5 | . . . . . . . . . 5 . . . . . Retrieve Study 3 | . . . . . . . 1 . 2 . . . . . Garrison Access Hacks . | . . . . . . . . . . . . . . . Unauthorized Hacks 2 | . . . . . . . . . 1 . . . . 1 Terminals 1 | . . . . . . . . . . . . . . 1 Detonate 1 | . . . . . . . . . . . . . . 1 Fabricators 1 | . . . . . . . . . 1 . . . . . Fabnet 1 | . . . . . . . . . 1 . . . . . Repair Stations . | . . . . . . . . . . . . . . . Recycling Units . | . . . . . . . . . . . . . . . Scanalyzers . | . . . . . . . . . . . . . . . Garrison Access . | . . . . . . . . . . . . . . . Data Cores Recovered 3 | . 1 . 1 . 1 . . . . . . . . . Used 1 | . . . 1 . . . . . . . . . . . Hacking Detections 30 | . 1 . 2 . 6 2 6 4 4 . . . 2 3 Full Trace Events 7 | . . . . . 1 2 1 2 . . . . . 1 Feedback Events 2 | . . . . . . . 1 1 . . . . . . Corruption 2 | . . . . . . . 1 1 . . . . . . Feedback Blocked . | . . . . . . . . . . . . . . . Robot Schematics Acquired . | . . . . . . . . . . . . . . . Robots Built . | . . . . . . . . . . . . . . . Authchips . | . . . . . . . . . . . . . . . Time . | . . . . . . . . . . . . . . . Total Robot Build Rating . | . . . . . . . . . . . . . . . Part Schematics Acquired 3 | . . . . . . . . . 3 . . . . . Parts Built . | . . . . . . . . . . . . . . . Authchips . | . . . . . . . . . . . . . . . Time . | . . . . . . . . . . . . . . . Total Part Build Rating . | . . . . . . . . . . . . . . . Part Studies Acquired 3 | . . . . . . . 1 . 2 . . . . . Parts Repaired 2 | . . . . . . . 2 . . . . . . . Time 76 | . . . . . . . 76 . . . . . . . Parts Recycled . | . . . . . . . . . . . . . . . Recycled Matter . | . . . . . . . . . . . . . . . Retrieved Matter . | . . . . . . . . . . . . . . . Retrieved Components . | . . . . . . . . . . . . . . . Parts Scanalyzed 3 | . . . . . . . . . 3 . . . . . Part Schematics Acquired 3 | . . . . . . . . . 3 . . . . . Parts Damaged . | . . . . . . . . . . . . . . . Bothacking | -11 -10 -10 -9 -8 -8 -8 -6 -6 -5 -4 -4 -4 -3 -3 ------------ Run | Yrd Mat Min Mat Mat Sto Rec Fac Ext Fac Fac Was Fac Res Qua Used RIF Installer . | . . . . . . . . . . . . . . . Robots Hacked 1 | . . . . . . . . . . . . . 1 . Non-combat . | . . . . . . . . . . . . . . . Combat 1 | . . . . . . . . . . . . . 1 . Robot Hacks Applied . | . . . . . . . . . . . . . . . Relay Couplers Released . | . . . . . . . . . . . . . . . Fabnet Peak Effective % 3 | . . . . . . . . . . 3 3 3 1 1 Autooverrided 1 | . . . . . . . . . . . . . 1 . Robots Rewired 8 | . . . . . . . . 8 . . . . . . Allies Hacked . | . . . . . . . . . . . . . . . Hacks Repelled . | . . . . . . . . . . . . . . . Allies | -11 -10 -10 -9 -8 -8 -8 -6 -6 -5 -4 -4 -4 -3 -3 -------- Run | Yrd Mat Min Mat Mat Sto Rec Fac Ext Fac Fac Was Fac Res Qua Total Allies 54 | . . . . . 10 . . 12 . . 19 12 1 . Largest Group 22 | . . . . . 10 7 1 8 . . 19 22 1 . Highest-Rated Group 797 | . . . . . 173 125 16 234 . . 684 797 64 . Highest-Rated Ally 64 | . . . . . 29 29 16 39 . . 50 50 64 . Total Orders 4 | . . . . . . . 1 1 . 2 . . . . GUARD 1 | . . . . . . . . 1 . . . . . . EXPLORE 3 | . . . . . . . 1 . . 2 . . . . Ally Attacks 260 | . . . . . 3 31 2 63 . . 71 90 . . Total Damage 7344 | . . . . . 46 310 20 1116 . . 2174 3678 . . Kills 31 | . . . . . . 3 . 7 . . 7 14 . . Allies Corrupted 2 | . . . . . . . 1 . . . . 1 . . Allies Melted . | . . . . . . . . . . . . . . . Intel | -11 -10 -10 -9 -8 -8 -8 -6 -6 -5 -4 -4 -4 -3 -3 ------- Run | Yrd Mat Min Mat Mat Sto Rec Fac Ext Fac Fac Was Fac Res Qua Active Infowar (turns) 6280 | 31 126 712 326 427 64 . 2110 308 1278 121 125 294 358 . Optics 1166 | . . . . . . . . 85 1081 . . . . . Sensors 2423 | . . . . . . . 1430 . 453 121 125 294 . . IFF 713 | . . . . . . . . . 713 . . . . . Structural 1233 | . . . . 265 64 . 680 224 . . . . . . Seismic 1357 | 31 126 712 326 162 . . . . . . . . . . ECM 358 | . . . . . . . . . . . . . 358 . Robot Analysis Total 2 | . 1 . . . . . . 1 . . . . . . Derelict Logs Recovered 3 | . . 3 . . . . . . . . . . . . Drone Launches 4 | . . . . . . . 2 . . 2 . . . . Drone Recoveries . | . . . . . . . . . . . . . . . Exploration | -11 -10 -10 -9 -8 -8 -8 -6 -6 -5 -4 -4 -4 -3 -3 ------------- Run | Yrd Mat Min Mat Mat Sto Rec Fac Ext Fac Fac Was Fac Res Qua Turns Passed 10078 | 60 126 712 326 449 876 394 2468 1869 1278 121 225 323 722 129 Spaces Moved 4863 | 45 109 492 174 175 364 198 927 848 709 85 140 171 367 59 Core 74 | 3 . . . . . . . 71 . . . . . . Treads 2551 | . . . 102 67 334 198 927 516 55 . 75 171 106 . Legs 960 | . . . . . . . . 20 654 85 65 . 134 2 Wheels 1094 | 42 109 492 72 108 30 . . 241 . . . . . . Hover 10 | . . . . . . . . . . . . . 10 . Flight 174 | . . . . . . . . . . . . . 117 57 Fastest Speed 34 | 50 90 105 105 155 160 160 157 50 92 108 108 160 34 37 Average Speed 138 | 87 93 105 157 194 160 160 160 139 124 108 138 162 111 42 Slowest Speed 800 | 100 105 105 240 400 170 160 240 800 250 108 163 163 310 190 Overloaded Moves . | . . . . . . . . . . . . . . . Propulsion Burnouts . | . . . . . . . . . . . . . . . Robots Hopped 3 | . . . . . . . . . . . . . 2 1 Potential Cave-ins . | . . . . . . . . . . . . . . . Cave-ins Triggered . | . . . . . . . . . . . . . . . Exploration Rate (%) 33 | 3 26 96 29 14 56 42 29 71 18 9 75 9 10 9 Regions Visited 14 Branch Regions 5 Pre-discovered Areas 3 | . . 2 . . 1 . . . . . . . . . Known Exits Taken 4 | . . . . . . . 1 1 1 . . 1 . . Unknown Exits Taken 8 | 1 1 1 1 1 1 1 . . . . . . 1 . Scrap Searched 1 | . . 1 . . . . . . . . . . . . Spaces Dug 5 | . . . . . . . 1 . 1 . 1 2 . . Terrain Destroyed 116 | . . . 46 5 . . 2 16 14 . 1 2 16 14 Melee 5 | . . . . . . . 1 . 1 . 1 2 . . Projectile 47 | . . . . 1 . . 1 16 13 . . . 16 . AOE 64 | . . . 46 4 . . . . . . . . . 14 Terrain Rammed . | . . . . . . . . . . . . . . . Walls Destroyed . | . . . . . . . . . . . . . . . Machines Disabled . | . . . . . . . . . . . . . . . Actions | -11 -10 -10 -9 -8 -8 -8 -6 -6 -5 -4 -4 -4 -3 -3 --------- Run | Yrd Mat Min Mat Mat Sto Rec Fac Ext Fac Fac Was Fac Res Qua Total 7559 | 59 125 669 205 259 588 273 1794 1367 1036 114 166 193 558 153 Wait 1916 | 6 1 166 . 32 152 70 752 276 256 28 5 2 88 82 Move 4844 | 44 108 491 173 174 363 197 926 847 708 85 139 170 362 57 Hop 3 | . . . . . . . . . . . . . 2 1 Pick Up 60 | 1 4 1 3 9 6 1 14 10 3 . 1 . 7 . Fast Attach 111 | 7 3 . 3 9 2 . 6 21 20 1 9 4 25 1 Attach 36 | . . . 2 1 . . 9 14 2 . . . 6 2 Detach 5 | . . . . 2 . . . 1 1 . . . 1 . Swap 72 | . 2 . 3 5 12 2 19 22 3 . 2 . 2 . Drop 91 | . 3 . 5 14 11 1 5 16 11 . 8 2 15 . Fire 328 | 1 4 11 16 13 40 1 57 89 31 . 1 6 48 10 Melee 11 | . . . . . . . 6 . 1 . 1 3 . . Ram . | . . . . . . . . . . . . . . . Kick 2 | . . . . . . . . . . . . . 2 . Crush 6 | . . . . . . . . . . . . 6 . . Escape Stasis . | . . . . . . . . . . . . . . . Rewire 74 | . . . . . 2 1 . 71 . . . . . . Trap . | . . . . . . . . . . . . . . . Miscellaneous . | . . . . . . . . . . . . . . . Route ------- -11/Scrapyard -10/Materials -10/Mines (discovered 2 exits: *Mat x2) -9/Materials (discovered 2 exits: [*Mat x2]) -8/Materials -8/Storage -8/Recycling -6/Factory -6/Extension (discovered 2 exits: *Fac / *Cet) -5/Factory -4/Factory -4/Waste -4/Factory -3/Research -3/Quarantine History --------- Turn | Location | Event 15 | -11/Scrapyard | Discovered new exit (range 16) 61 | -11/Scrapyard | Entered Materials 149 | -10/Materials | Discovered new exit (range 16) 187 | -10/Materials | Entered Mines 197 | -10/Mines | Met a Derelict bent on vengeance 218 | -10/Mines | Assembled infested the area 223 | -10/Mines | Assisted by a Guerilla fighting off Assembled 314 | -10/Mines | Build established: Mutant 320 | -10/Mines | YI-UF0 nonchalantly dropped a Grenade Launcher on the ground 616 | -10/Mines | Discovered new exit (range 3) 630 | -10/Mines | Learned location of Storage (-8) 826 | -10/Mines | Learned Materials interactive machine intel 874 | -10/Mines | Discovered new exit (range 9) 899 | -10/Mines | Entered Materials 899 | -9/Materials | Evolved 2 slots: Propulsion x1, Weapon x1 900 | -9/Materials | Loaded intel: 18 interactive machine locations 1142 | -9/Materials | Discovered new exit (range 10) 1194 | -9/Materials | Discovered new exit (range 13) 1225 | -9/Materials | Entered another Materials area 1225 | -8/Materials | Evolved 2 slots: Propulsion x1, Weapon x1 1281 | -8/Materials | Build established: Gunner 1580 | -8/Materials | Discovered new exit (range 11) 1674 | -8/Materials | Entered Storage 1788 | -8/Storage | Destroyed 10 combat bots 2036 | -8/Storage | Garrison activated, responded to threat 2043 | -8/Storage | Build established: Scavenger-Gunner 2243 | -8/Storage | Learned location of Armory (-3) 2331 | -8/Storage | Garrison activated, responded to threat 2427 | -8/Storage | Assisted by bots powering up and referring to "LRC-V3" 2530 | -8/Storage | Used back door to open Recycling access 2530 | -8/Storage | Discovered new exit (range 5) 2550 | -8/Storage | Entered Recycling 2550 | -8/Recycling | Accompanied by 7 allies 2734 | -8/Recycling | Build established: Commander-Gunner 2885 | -8/Recycling | Lost 5 allies 2918 | -8/Recycling | Discovered new exit (range 15) 2944 | -8/Recycling | Entered Factory 2944 | -6/Factory | Accompanied by 1 ally 2944 | -6/Factory | Evolved 4 slots: Propulsion x1, Utility x3 3063 | -6/Factory | Repaired Minigun 3102 | -6/Factory | Repaired Minigun 3140 | -6/Factory | Build established: Scavenger-Gunner 3751 | -6/Factory | Build established: Scavenger-Skirmisher 4724 | -6/Factory | Spotted B-75 Beast 4797 | -6/Factory | Destroyed B-75 Beast 4800 | -6/Factory | Garrison activated, responded to threat 4826 | -6/Factory | Lost 4 parts (3n1w) 5143 | -6/Factory | Build established: Scavenger-Gunner 5152 | -6/Factory | Cargo convoy interrupted 5300 | -6/Factory | Lost 3 parts (1u2w) 5397 | -6/Factory | Discovered new exit (range 9) 5408 | -6/Factory | Identified exit to Extension 5412 | -6/Factory | Entered Extension 5683 | -6/Extension | Rescued a captive Derelict 5702 | -6/Extension | Build established: Scavenger-Mutant 5821 | -6/Extension | Rescued a captive Derelict 5823 | -6/Extension | Rescued a captive Derelict 5923 | -6/Extension | Rescued a captive Derelict 6053 | -6/Extension | Build established: Scavenger-Gunner 6111 | -6/Extension | Lost 3 allies 6407 | -6/Extension | Lost 6 allies 6778 | -6/Extension | Spotted B-75 Beast 6884 | -6/Extension | Core integrity fell below 50% 6890 | -6/Extension | Destroyed B-75 Beast 6919 | -6/Extension | Lost 13 parts (2p8n3w) 6951 | -6/Extension | Spotted B-75 Beast 7220 | -6/Extension | Discovered new exit (range 22) 7221 | -6/Extension | Discovered new exit (range 20) 7228 | -6/Extension | Lost 10 parts (1p4n3u2w) 7241 | -6/Extension | Identified exit to Factory 7249 | -6/Extension | Identified exit to Cetus 7281 | -6/Extension | Entered Factory 7281 | -5/Factory | Evolved 2 slots: Power x1, Propulsion x1 7499 | -5/Factory | Central database locked down 7512 | -5/Factory | Garrison activated, responded to threat 7594 | -5/Factory | Build established: Skirmisher 8540 | -5/Factory | Discovered new exit (range 15) 8558 | -5/Factory | Identified exit to Factory 8559 | -5/Factory | Entered another Factory area 8559 | -4/Factory | Evolved 2 slots: Utility x2 8667 | -4/Factory | Build established: Scavenger-Skirmisher 8680 | -4/Factory | Sucked down chute 8680 | -4/Factory | Entered Waste 8695 | -4/Waste | EMP discharged 8697 | -4/Waste | Spotted C-40 Crusher 8705 | -4/Waste | Spotted C-40 Crusher 8711 | -4/Waste | Crushed by Compactor (1 part destroyed, 2 dropped) 8713 | -4/Waste | Spotted C-40 Crusher 8714 | -4/Waste | Crushed by Compactor (1 part destroyed, 1 dropped) 8738 | -4/Waste | Met Warlord forces unprepared to attack 8738 | -4/Waste | Allies destroyed C-40 Crusher 8741 | -4/Waste | Allies destroyed C-40 Crusher 8742 | -4/Waste | Spotted C-40 Crusher 8748 | -4/Waste | Allies destroyed C-40 Crusher 8755 | -4/Waste | Spotted C-40 Crusher 8759 | -4/Waste | Allies destroyed C-40 Crusher 8787 | -4/Waste | Found Damper Plating 8795 | -4/Waste | EMP discharged 8812 | -4/Waste | Spotted C-40 Crusher 8814 | -4/Waste | Allies destroyed C-40 Crusher 8875 | -4/Waste | Discovered new exit (range 11) 8895 | -4/Waste | EMP discharged 8895 | -4/Waste | System corruption reached 10% 8899 | -4/Waste | Identified exit to Factory 8905 | -4/Waste | Entered Factory 8905 | -4/Factory | Accompanied by 14 allies 9019 | -4/Factory | Build established: Scavenger-Tank 9130 | -4/Factory | Garrison activated, responded to threat 9155 | -4/Factory | First assault squad dispatched 9207 | -4/Factory | Discovered new exit (range 11) 9218 | -4/Factory | Lost 11 allies 9227 | -4/Factory | Identified exit to Research 9228 | -4/Factory | Entered Research 9228 | -3/Research | Evolved 2 slots: Weapon x2 9248 | -3/Research | Lost 3 parts (2u1w) 9399 | -3/Research | Garrison activated, responded to threat 9681 | -3/Research | Build established: Scavenger-Executioner 9722 | -3/Research | Garrison activated, responded to threat 9776 | -3/Research | Spotted B-86 Titan 9840 | -3/Research | Local machine network offline 9929 | -3/Research | Lost 19 parts (2p6n3u8w) 9944 | -3/Research | Core integrity fell below 50% 9945 | -3/Research | Discovered new exit (range 12) 9950 | -3/Research | Entered Quarantine 9981 | -3/Quarantine | Spotted Alpha 7 10073 | -3/Quarantine | Found Alien Launcher 10073 | -3/Quarantine | Identified Sigix Terminator 10079 | -3/Quarantine | Fired Sigix Terminator 10079 | -3/Quarantine | Destroyed self with Sigix Terminator Last Messages --------------- 10079_ Sigix Terminator expended. 10079_ Destroyed Flexi-carbon Leg. 10079_ Destroyed Adv. Heat Sink. 10079_ Destroyed Lgt. Antimatter Reactor. 10079_ G-67 Veteran destroyed. 10079_ Destroyed Flexi-carbon Leg. 10079_ G-67 Veteran destroyed. 10079_ Destroyed Prototype Reactor. 10079_ Destroyed Field Laser. 10079_ G-67 Veteran destroyed. 10079_ Imp. Reaction Control System destroyed. 10079_ Destroyed Imp. Reaction Control System. 10079_ Xenon Bombardment Thruster destroyed. 10079_ Destroyed Xenon Bombardment Thruster. 10079_ Xenon Bombardment Thruster destroyed. 10079_ Destroyed Xenon Bombardment Thruster. 10079_ Quantum Rifle destroyed. 10079_ Destroyed Quantum Rifle. 10079_ Flexi-carbon Leg destroyed. 10079_ Destroyed Flexi-carbon Leg. Map ----- +----------------------------------------------------+ | ?????# # #???????????? | | ?########/##+## #???????????? | | ?# # #???????????? | | ?#"" """ """ # +???????????? | | ?#"" """ """ =# #???????????? | | ?#"T """ """ # #???????????? | | ?#"" """ """ # #???????????? | | ?#"" """ """ # #???????????? | | ?# # #???????????? | | ?#########+#### ######??????? | | ???????# ! #????? | | ???????# #????? | | ?????### #????? | | ?????#"" """ ?????? | | ?????#""!!! """ ?????? | | ?????#"T!!! """ #????? | | ?????#""!!! #????? | | ?????#"" """???????? | | ?????### """???????? | | ???????# """ ?????? | | ???????# ""???? | | ???????#;;;;;;## """ T???? | | ??????##;;;; # """???????? | | ??????# #? """???????? | | ??????# ; #? ??????? | | ??????#@ ;; 7"#???? ?????? | | ??????# ;; "#????? ?????? | | ??????#" "##"""#?????? ?????? | | ??????##########?????????"?????? | | ???????????????????????????????? | | ???????????????????????????????? | | ???????????????????????????????? | | ???????????????????????????????? | | ???????????????????????????????? | | ???????????????????????????????? | | ???????????????????????????????? | | ???????????????????????????????? | | ???????????????????????????????? | | ???????????????????????????????? | | ???????????????????????????????? | | ???????????????????????????????? | | ???????????????????????????????? | | ???????????????????????????????? | | ???????????????????????????????? | | ???????????????????????????????? | | ???????????????????????????????? | | ???????????????????????????????? | | ???????????????????????????????? | | ???????????????????????????????? | | ???????????????????????????????? | +----------------------------------------------------+ Best States ------------- Heat Dissipation 84 Energy Generation 39 Energy Capacity 565 Matter Stores 300 Matter Capacity 300 Sight Range 22 Robot Scan Range 16 Terrain Scan Density 10 ECM Strength 2 Armor Coverage 1600 Resistance: KI 20 Resistance: EM 90 Phase Shifting 10 Evasion (%) 72 Targeting Accuracy 8 Target Analysis 6 Recoil Reduction 5 Offensive Hacking 12 Defensive Hacking 12 Item Schematics ----------------- Adv. Cooling System | -5/Factory | Scanalyzed Hacking Suite | -5/Factory | Scanalyzed System Shield | -5/Factory | Scanalyzed Robot Schematics ------------------ None Fabricated ------------ Nothing Repaired ---------- Minigun | 1% | -6/Factory Minigun | 12% | -6/Factory Studied --------- Minigun | -6/Factory | Hacked Imp. VSS Leg | -5/Factory | Hacked Plasma Rifle | -5/Factory | Hacked Alien Tech Used ----------------- Sigix Terminator Achievements -------------- None Challenges ------------ None Game ------ Seed InsulatedLargeForcegen Manual? 0 Play Time 01:40:33 Cumulative 234.6 hours Start 2026.07.24 @ 18:05:18 End 2026.07.25 @ 00:42:53 Sessions 5 Manual Loads 0 Difficulty Rogue Special Mode None Game No. 314 Rogue 314 Adventurer 0 Explorer 0 Win Type - Total 3 Types 2/0/0/1/0/0/0/0/0/0 Lore% 77 Gallery% 64 Achievement% 52 Wizard Run 0 Options --------- Layout 2 ASCII 0 Keyboard 0 Movement Mouse Keybinds 0 Fullscreen 1 Font 24/Smallcaps Map View 50x44 Zoom Use 0% Tactical HUD 1 Map Filters NONE Filters NONE Steam 1 RUN: 39669537-5a0b-4f27-b8d4-aa816866fc43